[Event "76th Montenegro Championship 2024"]
[Site "Podgorica"]
[Date "2024.02.12"]
[Round "8.4"]
[White "Drasko, Milan"]
[Black "Kadric, Denis"]
[Result "1/2-1/2"]
[ECO "E60"]
[WhiteElo "2339"]
[BlackElo "2584"]
[Annotator "TA"]
[PlyCount "90"]
[EventDate "2024.02.06"]
[EventType "swiss"]
[EventCountry "MNE"]
[SourceTitle "playchess.com"]
[Source "ChessBase"]
[SourceQuality "1"]
[TimeControl "40/5400+30:1800+30"]

{[%evp 13,90,39,45,29,27,27,24,13,41,45,45,27,54,58,56,56,77,54,103,42,81,27,30,28,0,-16,15,-25,0,-14,-24,-36,-21,-41,-24,-25,-38,-34,-23,-23,0,0,0,0,0,-203,-187,-180,-177,-233,-247,-203,-118,-135,-138,-260,-230,-220,-152,-184,-183,-206,-198,-218,-97,-85,-28,-29,-28,-29,-7,-34,0,0,8,14,14,25,8]} 1. d4 {[%emt 0:00:39]} Nf6 {[%emt 0:00:27]} 2. c4 {[%emt 0:00:55]} d6 {[%emt 0:00:17]} 3. Nf3 {[%emt 0:00:35]} g6 {[%emt 0:00:41]} 4. g3 {[%emt 0:00:30]} Bg7 {[%emt 0:00:40]} 5. Bg2 {[%emt 0:00:06]} Bf5 {[%emt 0:00:23]} 6. O-O {[%emt 0:01:41]} Qc8 {[%emt 0:01:36]} 7. Nc3 {[%emt 0:05:35]} O-O {[%emt 0:00:11]} 8. Bg5 {[%emt 0:05:03]} Re8 {[%emt 0:01:27]} 9. Qd2 {[%emt 0:04:45]} e5 {[%emt 0:10:10]} 10. Rfd1 {[%emt 0:17:04]} Nc6 {[%emt 0:06:53]} 11. d5 {[%emt 0:08:54]} Nb8 {[%emt 0:01:02]} 12. Ne1 {[%emt 0:01:42]} a5 {[%emt 0:01:06]} 13. e4 {[%emt 0:01:29]} Bd7 {[%emt 0:01:09]} 14. Nd3 {[%emt 0:04:31]} Na6 {[%emt 0:00:04]} 15. f3 {[%emt 0:02:05]} h5 {[%emt 0:02:42]} (15... b6 $14) 16. Bh6 {[%emt 0:06:48] White is more active.} (16. a3 $16) 16... h4 {[%emt 0:04:55]} 17. g4 {[%emt 0:05:09]} (17. Bg5 $16) 17... Nh7 $11 {[%emt 0:00:55]} 18. Bxg7 {[%emt 0:06:54]} Kxg7 {[%emt 0:00:04]} 19. Rf1 {[%emt 0:00:24]} Qd8 {[%emt 0:02:40]} 20. Rae1 {[%emt 0:04:40]} Qg5 {[%emt 0:05:17]} 21. Qf2 {[%emt 0:04:33]} b6 {[%emt 0:04:45]} 22. Nb5 {[%emt 0:02:25][%cal Ob5c7]} Rab8 {[%emt 0:10:14]} 23. Kh1 {[%emt 0:00:47]} Bxb5 {[%emt 0:07:07]} 24. cxb5 {[%emt 0:00:07]} Nc5 {[%emt 0:00:01]} 25. Re3 {[%emt 0:02:50]} Nf6 {[%emt 0:06:11]} 26. Nc1 {[%emt 0:01:11]} h3 {[%emt 0:03:25]} 27. Bxh3 {[%emt 0:00:08]} Rh8 {[%emt 0:00:02]} 28. Bg2 {[%emt 0:01:04]} Rh4 $36 {[%emt 0:00:20][%mdl 2048] Black has good play.} 29. Ne2 $2 {[%emt 0:04:46]} (29. h3 $11 {and White has nothing to worry.}) 29... Rbh8 $19 {[%emt 0:01:40]} 30. Kg1 {[%emt 0:05:52]} Rxh2 {[%emt 0:00:41] Threatens to win with ...Qh6.} 31. Rc3 {[%emt 0:01:26]} (31. Ng3 {is a better defense.}) 31... Qh6 {[%emt 0:02:39]} 32. Ng3 {[%emt 0:00:37] Against Rh1+} Qh4 {[%emt 0:04:27]} (32... Kf8 $19 {...Nh7 is the strong threat.} 33. Re1 Nh7) 33. Rd1 {[%emt 0:00:43]} Rh6 {[%emt 0:00:29] And now ...Nh7 would win.} 34. Rd2 {[%emt 0:00:53]} (34. Re3 $17) 34... Nh7 {[%emt 0:00:19]} 35. Qe1 {[%emt 0:00:32]} Kh8 {[%emt 0:01:37]} 36. Re3 {[%emt 0:00:22] [#]} f5 $1 {[%emt 0:09:18][%mdl 512]} 37. exf5 gxf5 {[%emt 0:00:00] Hoping for ...f4.} 38. gxf5 {[%emt 0:00:59]} (38. Nxf5 $2 {too greedy.} Rh1+ 39. Bxh1 Qxh1+ 40. Kf2 Rh2+ 41. Kg3 Qxe1+ 42. Rxe1 Rxd2 $19) 38... Nf6 {[%emt 0:00:29]} (38... Qf4 $19 {and Black stays clearly on top. aiming for ...Nf6.} 39. Rc3 R2h4) 39. Nf1 $17 {[%emt 0:00:19] [#]} Qh5 {[%emt 0:05:15]} 40. Nxh2 $11 {[%emt 0:00:00]} Qxh2+ {[%emt 0:00:00]} 41. Kf1 {[%emt 0:15:26][%cal Bg1f1,Bf1e2,Be2f2][%mdl 32]} Qf4 {[%emt 0:03:31][%cal Oc5e4]} 42. Ke2 {[%emt 0:07:18]} Qc4+ {[%emt 0:04:45]} 43. Kf2 {[%emt 0:00:47]} Nxd5 {[%emt 0:02:00][%cal Od5f4] [#] ...Nf4! would now be deadly. A dynamic duo of knights.} 44. Rxe5 $1 {[%emt 0:01:50]} Nd3+ $1 {[%emt 0:07:36] [#]} (44... dxe5 $2 {perishes.} 45. Qxe5+ Kg8 46. Qxd5+ Qxd5 47. Rxd5 $18) 45. Rxd3 $1 {[%emt 0:00:37]} Qxd3 {[%emt 0:00:02] White happily takes the draw.   Weighted Error Value: White=0.23 (precise) /Black=0.24 (precise) .  Loses game:     	White=1     	---        Mistake:       	White=4     	Black=4      Inaccurate:     	White=2     	Black=6      OK:         	White=12    	Black=12     Best:        	White=3     	Black=3      Strong:       	---       	Black=1      Brilliant:      	White=2     	---} 1/2-1/2

[Event "76th Montenegro Championship 2024"]
[Site "Podgorica"]
[Date "2024.02.12"]
[Round "8.5"]
[White "Nenezic, Danilo"]
[Black "Draganic, Veljko"]
[Result "1-0"]
[ECO "B12"]
[WhiteElo "2086"]
[BlackElo "2323"]
[Annotator "RC"]
[PlyCount "135"]
[EventDate "2024.02.06"]
[EventType "swiss"]
[EventCountry "MNE"]
[SourceTitle "playchess.com"]
[Source "ChessBase"]
[SourceQuality "1"]
[TimeControl "40/5400+30:1800+30"]

1. e4 {[%emt 0:02:00]} c6 {[%emt 0:00:57]} 2. d4 {[%emt 0:00:10]} d5 {[%emt 0:00:05]} 3. e5 {[%emt 0:00:10]} c5 {[%emt 0:00:20]} 4. dxc5 {[%emt 0:00:13]} e6 {[%emt 0:00:05]} 5. Bd3 {[%emt 0:00:22]} Nd7 {[%emt 0:01:52]} 6. Nf3 {[%emt 0:06:12]} Bxc5 {[%emt 0:01:13]} 7. c3 {[%emt 0:01:17]} f6 {[%emt 0:05:16]} 8. b4 {[%emt 0:02:41]} Bb6 {[%emt 0:01:28]} 9. exf6 {[%emt 0:00:46]} Ngxf6 {[%emt 0:01:21]} 10. O-O {[%emt 0:01:17]} e5 {[%emt 0:03:36]} 11. Bb5 {[%emt 0:01:50]} e4 {[%emt 0:01:23]} 12. Nd4 {[%emt 0:00:48]} Qe7 {[%emt 0:08:45]} 13. f4 {[%emt 0:11:51]} O-O {[%emt 0:02:25]} 14. Be3 {[%emt 0:01:23]} a5 {[%emt 0:05:01]} 15. a3 {[%emt 0:01:20]} Kh8 {[%emt 0:02:02]} 16. h3 {[%emt 0:03:07]} Qf7 {[%emt 0:01:45]} 17. Nd2 {[%emt 0:03:13]} axb4 {[%emt 0:00:46]} 18. axb4 {[%emt 0:03:11]} Rxa1 {[%emt 0:01:17]} 19. Qxa1 {[%emt 0:00:08]} Bc7 {[%emt 0:01:05]} 20. g4 {[%emt 0:08:52]} Nxg4 {[%emt 0:13:01]} 21. hxg4 {[%emt 0:00:40]} Nf6 {[%emt 0:00:06]} 22. Be2 {[%emt 0:03:44]} Bxg4 {[%emt 0:04:36]} 23. Qe1 {[%emt 0:46:45]} Bxe2 {[%emt 0:02:14]} 24. Nxe2 {[%emt 0:00:00]} Qh5 {[%emt 0:04:03]} 25. Rf2 {[%emt 0:00:00]} Ng4 {[%emt 0:02:06]} 26. Ng3 {[%emt 0:00:00]} Qh4 {[%emt 0:03:29]} 27. Rg2 {[%emt 0:00:00]} Nxe3 {[%emt 0:22:49]} 28. Qxe3 {[%emt 0:00:00]} Bxf4 {[%emt 0:00:32]} 29. Qc5 {[%emt 0:00:00]} Qd8 {[%emt 0:03:37]} 30. Qd4 {[%emt 0:00:00]} Qc7 {[%emt 0:03:32]} 31. Ne2 {[%emt 0:00:00]} Be5 {[%emt 0:01:28]} 32. Qc5 {[%emt 0:00:00]} Qf7 {[%emt 0:01:05]} 33. c4 {[%emt 0:00:00]} Qf5 {[%emt 0:01:30]} 34. cxd5 {[%emt 0:00:00]} Rc8 {[%emt 0:00:24]} 35. Qe3 {[%emt 0:00:00]} Re8 {[%emt 0:00:38]} 36. Ng3 {[%emt 0:00:00]} Qf6 {[%emt 0:00:26]} 37. Ne2 {[%emt 0:00:00]} Bc7 {[%emt 0:00:10]} 38. Nb3 {[%emt 0:01:12]} Bb6 {[%emt 0:00:31]} 39. Nc5 {[%emt 0:00:54]} Qa1+ {[%emt 0:00:13]} 40. Qc1 {[%emt 0:00:00]} Qf6 {[%emt 0:00:00]} 41. Qc3 {[%emt 0:04:58]} Qf7 {[%emt 0:02:42]} 42. Nf4 {[%emt 0:02:08]} Rf8 {[%emt 0:02:38]} 43. Qe5 {[%emt 0:03:48]} Bc7 {[%emt 0:00:50]} 44. d6 {[%emt 0:00:41]} Bxd6 {[%emt 0:00:58]} 45. Qxd6 {[%emt 0:00:47]} Qxf4 {[%emt 0:00:05]} 46. Qxf4 {[%emt 0:01:10]} Rxf4 {[%emt 0:00:02]} 47. Nxb7 {[%emt 0:01:22]} e3 {[%emt 0:01:03]} 48. b5 {[%emt 0:00:42]} Rb4 {[%emt 0:00:23]} 49. Nd6 {[%emt 0:00:35]} Rb1+ {[%emt 0:00:18]} 50. Kh2 {[%emt 0:00:56]} h6 {[%emt 0:01:58]} 51. Re2 {[%emt 0:24:47]} Rd1 {[%emt 0:00:44]} 52. Ne4 {[%emt 0:00:00]} Rd5 {[%emt 0:02:15]} 53. Nc3 {[%emt 0:00:00]} Rd3 {[%emt 0:00:34]} 54. Rc2 {[%emt 0:00:00]} e2 {[%emt 0:05:35]} 55. Nxe2 {[%emt 0:00:00]} Rb3 {[%emt 0:00:04]} 56. Rc8+ {[%emt 0:00:00]} Kh7 {[%emt 0:00:06]} 57. Nc3 {[%emt 0:00:00]} Kg6 {[%emt 0:00:43]} 58. Rc6+ {[%emt 0:00:00]} Kf5 {[%emt 0:00:16]} 59. b6 {[%emt 0:00:00]} Kf4 {[%emt 0:01:47]} 60. Rc7 {[%emt 0:00:00]} g5 {[%emt 0:01:36]} 61. Rc5 {[%emt 0:00:00]} Rb2+ {[%emt 0:01:58]} 62. Kg1 {[%emt 0:00:00]} Kf3 {[%emt 0:03:20]} 63. Rf5+ {[%emt 0:00:00]} Kg3 {[%emt 0:01:28]} 64. Rb5 {[%emt 0:00:00]} Rc2 {[%emt 0:00:44]} 65. Ne4+ {[%emt 0:00:52]} Kf3 {[%emt 0:01:06]} 66. Nxg5+ {[%emt 0:01:12]} hxg5 {[%emt 0:00:24]} 67. Rb3+ {[%emt 0:00:08]} Kg4 {[%emt 0:00:29]} 68. b7 {[%emt 0:00:09]} 1-0

[Event "76th Montenegro Championship 2024"]
[Site "Podgorica"]
[Date "2024.02.12"]
[Round "8.7"]
[White "Ratkovic, Milorad"]
[Black "Milovic, Jovan"]
[Result "0-1"]
[ECO "A43"]
[WhiteElo "2063"]
[BlackElo "2223"]
[Annotator "RC"]
[PlyCount "52"]
[EventDate "2024.02.06"]
[EventType "swiss"]
[EventCountry "MNE"]
[SourceTitle "playchess.com"]
[Source "ChessBase"]
[SourceQuality "1"]
[TimeControl "40/5400+30:1800+30"]

1. d4 {[%emt 0:00:03]} c5 {[%emt 0:00:27]} 2. d5 {[%emt 0:00:12]} e6 {[%emt 0:00:05]} 3. c4 {[%emt 0:00:07]} Bd6 {[%emt 0:00:09]} 4. e4 {[%emt 0:00:17]} Nf6 {[%emt 0:00:59]} 5. Bd3 {[%emt 0:00:14]} b5 {[%emt 0:01:51]} 6. Nf3 {[%emt 0:04:45]} bxc4 {[%emt 0:00:41]} 7. Bc2 {[%emt 0:00:17]} Bc7 {[%emt 0:00:48]} 8. O-O {[%emt 0:02:55]} d6 {[%emt 0:00:18]} 9. Nbd2 {[%emt 0:01:46]} Ba6 {[%emt 0:06:09]} 10. dxe6 {[%emt 0:03:30]} fxe6 {[%emt 0:00:32]} 11. Re1 {[%emt 0:01:06]} O-O {[%emt 0:01:35]} 12. Ng5 {[%emt 0:03:46]} Qd7 {[%emt 0:28:07]} 13. e5 {[%emt 0:05:13]} dxe5 {[%emt 0:00:05]} 14. Qf3 {[%emt 0:12:24]} h6 {[%emt 0:00:47]} 15. Nh7 {[%emt 1:01:25]} Nc6 {[%emt 0:03:46]} 16. Nxf8 {[%emt 0:00:00]} Rxf8 {[%emt 0:00:02]} 17. Ne4 {[%emt 0:00:00]} Nd4 {[%emt 0:03:38]} 18. Nxf6+ {[%emt 0:00:00]} Rxf6 {[%emt 0:00:18]} 19. Qe4 {[%emt 0:00:00]} Ba5 {[%emt 0:08:01]} 20. Re3 {[%emt 0:00:00]} Bb7 {[%emt 0:01:12]} 21. Qh7+ {[%emt 0:00:00]} Kf7 {[%emt 0:00:11]} 22. Rxe5 {[%emt 0:00:00]} Bc7 {[%emt 0:09:35]} 23. Re1 {[%emt 0:00:00]} Qd5 {[%emt 0:05:56]} 24. Be4 {[%emt 0:00:00]} Qh5 {[%emt 0:01:15]} 25. h3 {[%emt 0:00:00]} Qh4 {[%emt 0:01:57]} 26. g3 {[%emt 0:00:00]} Bxg3 {[%emt 0:00:52]} 0-1

[Event "76th Montenegro Championship 2024"]
[Site "Podgorica"]
[Date "2024.02.12"]
[Round "8.8"]
[White "Musovic, Armin"]
[Black "Podlesnik, Bogdan"]
[Result "0-1"]
[ECO "B22"]
[WhiteElo "2268"]
[BlackElo "2284"]
[Annotator "RC"]
[PlyCount "120"]
[EventDate "2024.02.06"]
[EventType "swiss"]
[EventCountry "MNE"]
[SourceTitle "playchess.com"]
[Source "ChessBase"]
[SourceQuality "1"]
[TimeControl "40/5400+30:1800+30"]

1. e4 {[%emt 0:00:02]} c5 {[%emt 0:02:21]} 2. c3 {[%emt 0:00:56]} d5 {[%emt 0:00:34]} 3. exd5 {[%emt 0:00:08]} Qxd5 {[%emt 0:00:09]} 4. Na3 {[%emt 0:00:08]} Nc6 {[%emt 0:01:24]} 5. Nf3 {[%emt 0:00:32]} Bg4 {[%emt 0:05:24]} 6. Be2 {[%emt 0:00:20]} Nf6 {[%emt 0:02:03]} 7. O-O {[%emt 0:03:22]} e6 {[%emt 0:04:32]} 8. Qa4 {[%emt 0:10:20]} Be7 {[%emt 0:04:57]} 9. Nc4 {[%emt 0:06:45]} Qe4 {[%emt 0:13:28]} 10. Bd1 {[%emt 0:00:46]} O-O {[%emt 0:03:15]} 11. Re1 {[%emt 0:20:05]} Qd3 {[%emt 0:01:58]} 12. Bc2 {[%emt 0:10:49]} Qd7 {[%emt 0:03:29]} 13. Ng5 {[%emt 0:05:29]} Rfd8 {[%emt 0:05:24]} 14. Ne3 {[%emt 0:01:49]} Bh5 {[%emt 0:02:12]} 15. Qf4 {[%emt 0:12:31]} Bg6 {[%emt 0:13:22]} 16. Bxg6 {[%emt 0:01:29]} hxg6 {[%emt 0:00:07]} 17. Nc4 {[%emt 0:02:07]} Qd3 {[%emt 0:04:59]} 18. Ne3 {[%emt 0:07:52]} e5 {[%emt 0:03:33]} 19. Qc4 {[%emt 0:03:43]} Qxc4 {[%emt 0:00:25]} 20. Nxc4 {[%emt 0:00:03]} Nd5 {[%emt 0:02:36]} 21. Nf3 {[%emt 0:00:27]} f6 {[%emt 0:01:55]} 22. g3 {[%emt 0:03:38]} Nc7 {[%emt 0:01:04]} 23. b3 {[%emt 0:02:25]} b5 {[%emt 0:01:10]} 24. Nb2 {[%emt 0:00:05]} g5 {[%emt 0:00:51]} 25. h3 {[%emt 0:00:03]} Kf7 {[%emt 0:01:06]} 26. d3 {[%emt 0:00:36]} b4 {[%emt 0:04:54]} 27. c4 {[%emt 0:00:47]} Ne6 {[%emt 0:01:18]} 28. Be3 {[%emt 0:01:42]} f5 {[%emt 0:00:07]} 29. Bd2 {[%emt 0:00:02]} Bf6 {[%emt 0:01:26]} 30. Rab1 {[%emt 0:00:02]} Rd7 {[%emt 0:02:00]} 31. g4 {[%emt 0:00:20]} g6 {[%emt 0:03:08]} 32. Kg2 {[%emt 0:00:10]} Rad8 {[%emt 0:00:17]} 33. Be3 {[%emt 0:00:15]} Be7 {[%emt 0:02:55]} 34. Bc1 {[%emt 0:00:35]} Bf6 {[%emt 0:00:47]} 35. Be3 {[%emt 0:00:56]} Ncd4 {[%emt 0:02:12]} 36. Bxd4 {[%emt 0:00:16]} Nf4+ {[%emt 0:00:42]} 37. Kg3 {[%emt 0:04:29]} Rh8 {[%emt 0:01:16]} 38. h4 {[%emt 0:01:36]} gxh4+ {[%emt 0:01:26]} 39. Kh2 {[%emt 0:00:06]} exd4 {[%emt 0:01:12]} 40. g5 {[%emt 0:00:00]} Bg7 {[%emt 0:00:00]} 41. Rbd1 {[%emt 0:02:45]} Re7 {[%emt 0:03:20]} 42. Rxe7+ {[%emt 0:05:49]} Kxe7 {[%emt 0:00:05]} 43. Na4 {[%emt 0:00:43]} Kd6 {[%emt 0:00:47]} 44. Rd2 {[%emt 0:00:09]} Bf8 {[%emt 0:01:31]} 45. Rd1 {[%emt 0:00:22]} Be7 {[%emt 0:00:35]} 46. Nb2 {[%emt 0:01:55]} Rh5 {[%emt 0:05:05]} 47. Re1 {[%emt 0:00:11]} Bxg5 {[%emt 0:04:25]} 48. Re8 {[%emt 0:00:41]} Ne6 {[%emt 0:00:37]} 49. Ra8 {[%emt 0:01:45]} Bf4+ {[%emt 0:00:15]} 50. Kh1 {[%emt 0:00:05]} Rh7 {[%emt 0:00:46]} 51. Na4 {[%emt 0:00:14]} g5 {[%emt 0:02:53]} 52. Re8 {[%emt 0:00:05]} g4 {[%emt 0:00:51]} 53. Ne1 {[%emt 0:00:05]} h3 {[%emt 0:03:01]} 54. Nc2 {[%emt 0:00:02]} Be5 {[%emt 0:04:08]} 55. a3 {[%emt 0:00:16]} a5 {[%emt 0:00:20]} 56. Ra8 {[%emt 0:00:29]} f4 {[%emt 0:00:55]} 57. Ra6+ {[%emt 0:00:28]} Ke7 {[%emt 0:01:01]} 58. Ra7+ {[%emt 0:00:10]} Bc7 {[%emt 0:00:52]} 59. axb4 {[%emt 0:00:24]} g3 {[%emt 0:01:11]} 60. fxg3 {[%emt 0:00:17]} f3 {[%emt 0:00:49]} 0-1

[Event "76th Montenegro Championship 2024"]
[Site "Podgorica"]
[Date "2024.02.12"]
[Round "8.9"]
[White "Kalezic, Blazo"]
[Black "Zherebtsova, Alexandra"]
[Result "1-0"]
[ECO "C55"]
[WhiteElo "2407"]
[BlackElo "2270"]
[Annotator "TA"]
[PlyCount "101"]
[EventDate "2024.02.06"]
[EventType "swiss"]
[EventCountry "MNE"]
[SourceTitle "playchess.com"]
[Source "ChessBase"]
[SourceQuality "1"]
[TimeControl "40/5400+30:1800+30"]

{[%evp 13,101,12,10,11,17,14,11,10,15,11,13,12,25,7,26,22,43,25,67,55,59,58,65,72,55,57,136,139,137,107,143,125,174,143,147,104,83,0,0,0,0,0,0,0,0,0,0,0,0,0,0,0,29,10,8,15,49,31,64,38,55,0,75,38,73,82,120,116,436,473,485,485,485,466,462,472,461,399,466,456,977,892,875,875,6977,6391,5422,5418,29985,29986]} 1. e4 {[%emt 0:00:04]} e5 {[%emt 0:05:49]} 2. Bc4 {[%emt 0:00:16]} Nf6 {[%emt 0:00:48]} 3. d3 {[%emt 0:00:13]} Nc6 {[%emt 0:02:26]} 4. Nf3 {[%emt 0:00:29]} Be7 {[%emt 0:00:18]} 5. Nbd2 {[%emt 0:01:16]} O-O {[%emt 0:01:29]} 6. O-O {[%emt 0:00:26]} d6 {[%emt 0:01:10]} 7. c3 {[%emt 0:00:33]} Na5 {[%emt 0:16:28]} 8. Bb5 {[%emt 0:00:58]} c5 {[%emt 0:01:27]} 9. Ba4 {[%emt 0:01:40]} Nc6 {[%emt 0:04:22]} 10. Re1 {[%emt 0:00:40] The position is equal.} Rb8 {[%emt 0:01:31]} 11. h3 {[%emt 0:08:58]} Re8 {[%emt 0:04:25]} 12. Nf1 {[%emt 0:08:05]} h6 {[%emt 0:16:43]} 13. Ng3 {[%emt 0:06:56]} Bf8 {[%emt 0:03:01]} 14. d4 {[%emt 0:04:37]} b5 {[%emt 0:02:25]} 15. Bb3 {[%emt 0:01:52]} Bb7 {[%emt 0:10:13]} 16. d5 {[%emt 0:03:22]} Ne7 {[%emt 0:03:05]} 17. a4 {[%emt 0:01:49]} a6 {[%emt 0:00:24]} 18. axb5 {[%emt 0:00:35]} axb5 {[%emt 0:00:01]} 19. c4 {[%emt 0:00:24]} Nd7 {[%emt 0:06:01]} (19... Bc8 $14) 20. cxb5 $16 {[%emt 0:00:49] White has more active pieces.} Nb6 {[%emt 0:04:12]} 21. Be3 {[%emt 0:05:24]} Qd7 {[%emt 0:01:54]} 22. Qe2 {[%emt 0:03:42]} g6 {[%emt 0:01:47]} (22... Bc8 $16 23. Ra5 Bb7) 23. Ra5 {[%emt 0:04:04]} Bg7 {[%emt 0:00:43]} 24. Nd2 {[%emt 0:02:06]} f5 {[%emt 0:03:30] [#]} 25. Bxc5 {[%emt 0:01:00]} dxc5 $11 {[%emt 0:00:11]} 26. d6+ {[%emt 0:00:06]} Ned5 $1 {[%emt 0:01:07]} 27. exd5 {[%emt 0:01:26]} Qxd6 {[%emt 0:00:37][%cal Og8h7]} 28. Nc4 {[%emt 0:01:18]} Nxc4 {[%emt 0:00:05]} (28... Qxd5 29. Ne4 Kh7 (29... fxe4 30. Ra3 $18) 30. Nxb6 $14) 29. Bxc4 {[%emt 0:02:10]} e4 {[%emt 0:01:04][%cal Be5e4,Be4e3][%mdl 32]} 30. Qd2 {[%emt 0:00:40]} Kh7 {[%emt 0:01:59]} 31. Ne2 {[%emt 0:00:48]} Be5 {[%emt 0:04:44]} 32. Ra3 {[%emt 0:01:13]} f4 {[%emt 0:00:37]} 33. f3 {[%emt 0:01:56]} e3 {[%emt 0:00:32]} 34. Qc2 {[%emt 0:00:46]} Red8 {[%emt 0:00:59][%cal Od8d7]} 35. Rd1 {[%emt 0:02:06]} Qf6 {[%emt 0:00:34]} 36. Ra4 {[%emt 0:01:53]} Ra8 {[%emt 0:00:20]} 37. b3 {[%emt 0:00:15]} ({White should play} 37. Rxa8 $14 Rxa8 38. d6) 37... Rac8 {[%emt 0:00:45] [#]} (37... h5 $11 {keeps the balance.}) 38. Bd3 $1 $16 {[%emt 0:02:03]} Kg7 {[%emt 0:01:05]} 39. Be4 {[%emt 0:01:21][%cal Od5d6]} Rd7 {[%emt 0:00:28]} 40. Rc4 {[%emt 0:00:00]} Qb6 $2 {[%emt 0:00:00][%mdl 8192] Black cannot hold the game after this.} (40... Rcc7 $16 {is tougher.} 41. Rxc5 Rxc5 42. Qxc5 h5) 41. b4 $18 {[%emt 0:01:25][%cal Rb4c5,Bb3b4,Bb4b5][%mdl 32]} Qxb5 {[%emt 0:12:48]} 42. Rxc5 {[%emt 0:02:53]} (42. Bxg6 Rxd5 (42... cxb4 $2 43. Rxc8 Bxc8 44. Be8 $18) 43. Bd3 (43. Nxf4 $2 Qxc4 44. Nxd5 e2 $19) 43... Rcd8 $11) (42. bxc5 Ba6 43. Bd3 (43. c6 Rdd8 $17) 43... Rxd5 $18) 42... Qa6 {[%emt 0:08:34]} 43. Rxc8 {[%emt 0:09:36]} Bxc8 {[%emt 0:00:02] [#]} 44. b5 $1 {[%emt 0:00:28][%mdl 512]} Qb7 {[%emt 0:01:02]} 45. d6 {[%emt 0:10:03]} (45. Bxg6 Rxd5 46. Rxd5 Qxd5 47. Qxc8 Kxg6 $16) 45... Qb8 {[%emt 0:00:35]} 46. Rd5 {[%emt 0:01:09]} (46. Bxg6 Rxd6 47. Rxd6 Qxd6 $18) 46... Bxd6 {[%emt 0:02:35]} (46... Bf6 $142 47. Rc5 (47. Nxf4 Bb7 $18) 47... Qxd6 48. Rxc8 Qd1+ 49. Kh2 Qxc2 50. Rxc2 Rd2 51. Rxd2 (51. Nxf4 Be5 $16) 51... exd2) 47. Qc3+ {[%emt 0:01:31]} ({Not} 47. Bxg6 Qc7 $18) 47... Kf7 {[%emt 0:00:52][%cal Bg7f7,Bf7e8,Be8e7][%mdl 32]} 48. Qh8 {[%emt 0:01:37][%cal Oe2d4] And now Nd4! would win.} Bf8 {[%emt 0:01:45]} 49. Qh7+ {[%emt 0:01:18]} Ke8 {[%emt 0:00:05]} 50. Qxg6+ {[%emt 0:01:07]} Ke7 {[%emt 0:00:43]} 51. Nd4 {[%emt 0:01:01] Weighted Error Value: White=0.11 (very precise) /Black=0.37.  Loses game:     	---       	Black=1      Mistake:       	White=2     	Black=4      Inaccurate:     	White=1     	Black=7      OK:         	White=15    	Black=14     Best:        	White=5     	---        Strong:       	White=1     	Black=1} 1-0

[Event "76th Montenegro Championship 2024"]
[Site "Podgorica"]
[Date "2024.02.12"]
[Round "8.10"]
[White "Tomic, Aleksandar"]
[Black "Ivanovic, Bozidar"]
[Result "1/2-1/2"]
[ECO "D35"]
[WhiteElo "2398"]
[BlackElo "2403"]
[Annotator "TA"]
[PlyCount "41"]
[EventDate "2024.02.06"]
[EventType "swiss"]
[EventCountry "MNE"]
[SourceTitle "playchess.com"]
[Source "ChessBase"]
[SourceQuality "1"]
[TimeControl "40/5400+30:1800+30"]

{[%evp 27,41,21,37,30,74,80,64,86,79,71,62,54,52,58,65,47]} 1. d4 {[%emt 0:04:33]} d5 {[%emt 0:00:09]} 2. c4 {[%emt 0:00:07]} e6 {[%emt 0:00:11]} 3. Nc3 {[%emt 0:00:10]} Be7 {[%emt 0:00:14]} 4. cxd5 {[%emt 0:00:15]} exd5 {[%emt 0:00:10]} 5. Bf4 {[%emt 0:00:07]} Nf6 {[%emt 0:00:15]} 6. e3 {[%emt 0:00:07]} c6 {[%emt 0:00:10]} 7. Bd3 {[%emt 0:00:10]} Nbd7 {[%emt 0:00:13][%cal Bb8d7,Bd7f8,Bf8g6][%mdl 32]} 8. h3 {[%emt 0:00:13]} O-O {[%emt 0:00:16]} 9. Nf3 {[%emt 0:00:10]} Re8 {[%emt 0:00:13]} 10. O-O {[%emt 0:00:07]} Nf8 {[%emt 0:00:12]} 11. Qc2 {[%emt 0:00:27]} Ng6 {[%emt 0:00:21]} 12. Bh2 {[%emt 0:00:24]} Bd6 {[%emt 0:00:12]} 13. Bxd6 {[%emt 0:00:19]} Qxd6 {[%emt 0:00:08]} 14. Rab1 {[%emt 0:00:08]} Qe7 {[%emt 0:01:53]} 15. b4 {[%emt 0:02:46]} Ne4 {[%emt 0:00:46]} 16. b5 {[%emt 0:00:34]} Nxc3 {[%emt 0:00:59]} 17. Qxc3 {[%emt 0:00:09]} cxb5 {[%emt 0:00:35]} 18. Bxb5 {[%emt 0:02:28]} Rd8 {[%emt 0:00:17]} 19. Bd3 {[%emt 0:10:11] Wards off Bf5. White is more active. White is slightly better.} Be6 {[%emt 0:00:44]} 20. Rfc1 {[%emt 0:09:15]} Rdc8 {[%emt 0:00:44] Prevents Qc5} 21. Qb2 {[%emt 0:00:41] Weighted Error Value: White=0.00 (flawless) /Black=0.08 (flawless) .  Inaccurate:     	---       	Black=1      OK:         	White=2     	Black=3      Best:        	White=1     	---} 1/2-1/2